Cogmind - Beta 13 @@@ ROGUE MODE // 2024.04.03 @ 22:34:35 Player: ConfusedWizard Result: Self-destructed Performance ------------- Evolutions (2) 1000 Regions Visited (5) 1000 Robots Destroyed (5) 25 Value Destroyed (150) 150 Prototype IDs (25) 500 Alien Tech Used (0) 0 Bonus (300) 300 TOTAL SCORE: 2975 Bonus ------- Aligned with FarCom 300 Cogmind --------- Core Integrity 535/550 Matter 189/300 Energy 26/250 System Corruption 0% Temperature Cool (0) Movement Walking (105) Location -8/Materials Parts ------- > --- POWER (2) -------- Ion Engine > --- PROPULSION (4) --- Aluminum Leg Aluminum Leg Potential Leg Potential Leg > --- UTILITY (3) ------ Cooling System High-capacity Storage Unit > --- WEAPON (2) ------- EM Pulse Cannon Heavy Particle Cannon > --- INVENTORY (20) --- Large Storage Unit Medium Matter Pod (0) Experimental Sensor Array Cloak of Protection Skeleton Box Small Laser Small Laser Peak State ------------ > --- POWER ------------ Ion Engine > --- PROPULSION ------- Aluminum Leg Aluminum Leg Potential Leg Potential Leg > --- UTILITY ---------- Cooling System High-capacity Storage Unit > --- WEAPON ----------- EM Pulse Cannon Heavy Particle Cannon > --- INVENTORY -------- Large Storage Unit Medium Matter Pod Experimental Sensor Array Cloak of Protection Skeleton Box Small Laser Small Laser [Rating: 34] Favorites ----------- Power Ion Engine Engine Ion Engine Propulsion Aluminum Leg Leg Aluminum Leg Utility Medium Matter Pod Device Cooling System Storage Medium Matter Pod Protection Medium Armor Plating Weapon Small Laser Energy Gun Small Laser Energy Cannon EM Pulse Cannon Build | -11 -10 -10 -10 -9 -8 ------- Run | Yrd Mat Min Exi Min Mat Slots Evolved 4 | . . . . . 4 Power 1 | . . . . . 1 Propulsion 2 | . . . . . 2 Utility 1 | . . . . . 1 Weapon . | . . . . . . Parts Attached 22 | 6 1 . 8 3 4 Power 1 | 1 . . . . . Engine 1 | 1 . . . . . Core . | . . . . . . Reactor . | . . . . . . Propulsion 6 | 2 . . 2 . 2 Treads . | . . . . . . Leg 6 | 2 . . 2 . 2 Wheel . | . . . . . . Hover . | . . . . . . Flight . | . . . . . . Utility 11 | 1 1 . 6 3 . Device 2 | . . . 1 1 . Storage 8 | 1 1 . 5 1 . Processor . | . . . . . . Hackware . | . . . . . . Protection 1 | . . . . 1 . Artifact . | . . . . . . Weapon 4 | 2 . . . . 2 Energy Gun 2 | 2 . . . . . Energy Cannon 2 | . . . . . 2 Ballistic Gun . | . . . . . . Ballistic Cannon . | . . . . . . Launcher . | . . . . . . Special Weapon . | . . . . . . Impact Weapon . | . . . . . . Slashing Weapon . | . . . . . . Piercing Weapon . | . . . . . . Special Melee Weapon . | . . . . . . Unidentified Prototypes . | . . . . . . Parts Lost 1 | . . . . 1 . Power . | . . . . . . Propulsion . | . . . . . . Utility 1 | . . . . 1 . Weapon . | . . . . . . Highest Loss Streak 1 | . . . . 1 . To Critical Strikes . | . . . . . . Average Slot Usage (%) 88 | . 85 85 87 99 81 Engine 12 | . 14 14 14 14 9 Leg 29 | . 28 28 28 28 36 Device 4 | . . . 2 6 9 Storage 12 | . 14 14 14 14 9 Protection 1 | . . . . 7 . Energy Gun 21 | . 28 28 28 28 2 Energy Cannon 3 | . . . . . 15 Naked Turns . | . . . . . . Heaviest Build 59 | 12 12 9 55 55 59 Greatest Support 80 | 20 20 20 60 60 80 Greatest Overweight (x) 1 | 1 . . . . . Average Overweight (x) . | . . . . . . Largest Inventory Capacity 20 | 8 8 5 20 20 20 Average Capacity 12 | 7 6 5 5 20 20 Most Carried 7 | 2 1 . 5 7 7 Average Carried 3 | . . . 1 6 6 Final Capacity 20 | 8 5 5 20 20 20 Final Carried 7 | . . . 5 7 7 Class Distribution -------------------- 100% | Mutant Dominant Class ---------------- Mutant | -10/Materials Mutant | -10/Mines Mutant | -10/Exiles Mutant | -9/Mines Mutant | -8/Materials Resources | -11 -10 -10 -10 -9 -8 ----------- Run | Yrd Mat Min Exi Min Mat Matter Collected 301 | 110 13 . . 178 . Remotely . | . . . . . . Salvage Created 139 | . 13 . . 44 82 Parts 7 | . 1 . . 1 5 Haulers Intercepted . | . . . . . . Recyclers Shooed . | . . . . . . Parts Field Recycled . | . . . . . . Retrieved Matter . | . . . . . . Parts Self-Destructed . | . . . . . . Prevented . | . . . . . . Kills | -11 -10 -10 -10 -9 -8 ------- Run | Yrd Mat Min Exi Min Mat Combat Hostiles Destroyed 4 | . . . . 1 3 Guns 1 | . . . . 1 . Cannons 3 | . . . . . 3 Classes Destroyed 3 | . 1 . . 1 1 Operator 1 | . 1 . . . . Swarmer 2 | . . . . . 2 Grunt 2 | . . . . 1 1 Best Kill Streak 1 | . 1 . . 1 1 Combat Bots Only 1 | . . . . 1 1 Max Kills in Single Turn 1 | . 1 . . 1 1 Gunslinging . | . . . . . . Exploded . | . . . . . . Melee . | . . . . . . Uniques/NPCs Destroyed . | . . . . . . Combat | -11 -10 -10 -10 -9 -8 -------- Run | Yrd Mat Min Exi Min Mat Hostile Shots Fired 50 | . . . . 13 37 Missed 12 | . . . . 1 11 Damage Taken 420 | . . . . 179 241 Core 44 | . . . . 29 15 Absorbed by Shields . | . . . . . . Core Remaining (%) 94 | 100 . . . 88 . Volleys Fired 20 | . 2 . . 11 7 Largest 2 | . 2 . . 2 2 Hottest 138 | . 80 . . 80 138 Shots Fired 36 | . 4 . . 18 14 Gun 22 | . 4 . . 18 . Cannon 14 | . . . . . 14 Launcher . | . . . . . . Special . | . . . . . . Kinetic . | . . . . . . Thermal 29 | . 4 . . 18 7 Explosive . | . . . . . . Electromagnetic 7 | . . . . . 7 Robot Hit Streak 4 | . 2 . . 4 4 Robot Miss Streak 4 | . 1 . . 4 4 Penetration Max . | . . . . . . Secondary Targets . | . . . . . . Shots Hit Robots 18 | . 3 . . 10 5 Core Hits 9 | . 2 . . 3 4 Critical Kills . | . . . . . . Critical Parts Destroyed . | . . . . . . Critical Strikes . | . . . . . . Melee Attacks . | . . . . . . Impact . | . . . . . . Slashing . | . . . . . . Piercing . | . . . . . . Sneak Attacks . | . . . . . . Combat Hostiles . | . . . . . . Follow-up Attacks . | . . . . . . Damage Inflicted 324 | . 33 . . 110 181 Guns 135 | . 33 . . 102 . Cannons 181 | . . . . . 181 Explosions . | . . . . . . Melee . | . . . . . . Ramming 8 | . . . . 8 . Kinetic . | . . . . . . Thermal 210 | . 33 . . 102 75 Explosive . | . . . . . . Electromagnetic 106 | . . . . . 106 Impact . | . . . . . . Slashing . | . . . . . . Piercing . | . . . . . . Highest Corruption . | . . . . . . Average Corruption . | . . . . . . Corruption Purged . | . . . . . . Corruption Blocked . | . . . . . . Overload Shots . | . . . . . . Overflow Damage 43 | . . . . . 43 Projectiles 43 | . . . . . 43 Explosions . | . . . . . . Melee . | . . . . . . Knockbacks . | . . . . . . Impact . | . . . . . . Kinetic . | . . . . . . Secondary . | . . . . . . Self-Inflicted Damage . | . . . . . . Shots . | . . . . . . Rammed . | . . . . . . Targets Rammed 1 | . . . . 1 . Kicked 1 | . . . . 1 . Crushed . | . . . . . . Highest Temperature 297 | . 36 . . 297 12 Average Temperature 135 | . 20 . . 173 7 Received Heat Transfer 144 | . . . . 108 36 Effects 2 | . . . . 2 . Energy Bleed 1 | . . . . 1 . Interference 1 | . . . . 1 . Siege Activations . | . . . . . . Robots Corrupted . | . . . . . . Combat Hostiles . | . . . . . . Parts Fried . | . . . . . . Impact Corruptions . | . . . . . . Robots Melted . | . . . . . . Combat Hostiles . | . . . . . . Parts Melted . | . . . . . . Heat Transferred 436 | . 75 . . 250 111 Parts Sabotaged . | . . . . . . Parts Stolen . | . . . . . . Parts Stripped . | . . . . . . Power Chain Reactions . | . . . . . . Alert | -11 -10 -10 -10 -9 -8 ------- Run | Yrd Mat Min Exi Min Mat Peak Influence 80 | . 20 7 . 60 80 Initial 23 | . . 7 . . 23 Average 26 | . 15 7 . 22 36 Maximum Alert Level . | . . . . . . Low Security (%) 100 | 100 100 100 . 100 100 Level 1 . | . . . . . . Level 2 . | . . . . . . Level 3 . | . . . . . . Level 4 . | . . . . . . Level 5 . | . . . . . . High Security . | . . . . . . Max Security . | . . . . . . Squads Dispatched 1 | . . . . . 1 Investigation . | . . . . . . Extermination . | . . . . . . Reinforcement 1 | . . . . . 1 Assault . | . . . . . . Garrison . | . . . . . . Intercept . | . . . . . . Searches Triggered . | . . . . . . Construction Impeded . | . . . . . . Haulers Reinforced . | . . . . . . Active Scanning Responses . | . . . . . . Cargo Convoy Interrupts . | . . . . . . Stealth | -11 -10 -10 -10 -9 -8 --------- Run | Yrd Mat Min Exi Min Mat Distress Signals 3 | . . . . . 3 Communications Jammed . | . . . . . . Distress Signals . | . . . . . . Times Spotted 15 | . 1 . . 4 10 Peak Tracking Total 5 | . 1 . . 2 5 Tactical Retreats 3 | . . . . 2 1 Traps | -11 -10 -10 -10 -9 -8 ------- Run | Yrd Mat Min Exi Min Mat Traps Triggered . | . . . . . . Indirectly . | . . . . . . Trap Hack Attempts . | . . . . . . Triggered . | . . . . . . Disarmed . | . . . . . . Reprogrammed . | . . . . . . Reused . | . . . . . . Traps Extracted . | . . . . . . Installed . | . . . . . . Triggered . | . . . . . . Machines | -11 -10 -10 -10 -9 -8 ---------- Run | Yrd Mat Min Exi Min Mat Machines Disabled 2 | . . . . . 2 Max in Single Turn 1 | . . . . . 1 Machines Repaired . | . . . . . . Machines Dismantled . | . . . . . . Machines Sabotaged . | . . . . . . Overloaded Fab Kills . | . . . . . . Hacking | -11 -10 -10 -10 -9 -8 --------- Run | Yrd Mat Min Exi Min Mat Machines Accessed 6 | . 1 . 5 . . Terminals 1 | . 1 . . . . Fabricators . | . . . . . . Repair Stations . | . . . . . . Recycling Units . | . . . . . . Scanalyzers . | . . . . . . Garrison Access . | . . . . . . Total Hacks 53 | . 3 . 50 . . Successful 51 | . 1 . 50 . . Failed 2 | . 2 . . . . Catastrophic . | . . . . . . Database Lockouts . | . . . . . . Manual 2 | . . . 2 . . Terminals 3 | . 3 . . . . Fabricators . | . . . . . . Repair Stations . | . . . . . . Recycling Units . | . . . . . . Scanalyzers . | . . . . . . Garrison Access . | . . . . . . Terminal Hacks 51 | . 1 . 50 . . Record 49 | . . . 49 . . Prototype ID Bank 1 | . 1 . . . . Derelict Proto ID Bank 1 | . . . 1 . . Fabricator Hacks . | . . . . . . Repair Station Hacks . | . . . . . . Recycling Unit Hacks . | . . . . . . Scanalyzer . | . . . . . . Garrison Access Hacks . | . . . . . . Unauthorized Hacks . | . . . . . . Terminals . | . . . . . . Fabricators . | . . . . . . Repair Stations . | . . . . . . Recycling Units . | . . . . . . Scanalyzers . | . . . . . . Garrison Access . | . . . . . . Data Cores Recovered 1 | . 1 . . . . Used 1 | . 1 . . . . Hacking Detections 1 | . 1 . . . . Full Trace Events . | . . . . . . Feedback Events . | . . . . . . Feedback Blocked . | . . . . . . Robot Schematics Acquired . | . . . . . . Robots Built . | . . . . . . Authchips . | . . . . . . Time . | . . . . . . Total Robot Build Rating . | . . . . . . Part Schematics Acquired . | . . . . . . Parts Built . | . . . . . . Authchips . | . . . . . . Time . | . . . . . . Total Part Build Rating . | . . . . . . Parts Repaired . | . . . . . . Time . | . . . . . . Parts Recycled . | . . . . . . Recycled Matter . | . . . . . . Retrieved Matter . | . . . . . . Retrieved Components . | . . . . . . Parts Scanalyzed . | . . . . . . Part Schematics Acquired . | . . . . . . Parts Damaged . | . . . . . . Bothacking | -11 -10 -10 -10 -9 -8 ------------ Run | Yrd Mat Min Exi Min Mat Used RIF Installer . | . . . . . . Robots Hacked . | . . . . . . Non-combat . | . . . . . . Combat . | . . . . . . Robot Hacks Applied . | . . . . . . Relay Couplers Released . | . . . . . . Fabnet Peak Effective % . | . . . . . . Robots Rewired . | . . . . . . Allies Hacked . | . . . . . . Hacks Repelled . | . . . . . . Allies | -11 -10 -10 -10 -9 -8 -------- Run | Yrd Mat Min Exi Min Mat Total Allies . | . . . . . . Largest Group . | . . . . . . Highest-Rated Group . | . . . . . . Highest-Rated Ally . | . . . . . . Total Orders . | . . . . . . Ally Attacks . | . . . . . . Total Damage . | . . . . . . Kills . | . . . . . . Allies Corrupted . | . . . . . . Allies Melted . | . . . . . . Intel | -11 -10 -10 -10 -9 -8 ------- Run | Yrd Mat Min Exi Min Mat Robot Analysis Total . | . . . . . . Derelict Logs Recovered 1 | . . . . 1 . Drone Launches . | . . . . . . Drone Recoveries . | . . . . . . Exploration | -11 -10 -10 -10 -9 -8 ------------- Run | Yrd Mat Min Exi Min Mat Turns Passed 1786 | 52 99 24 803 377 431 Spaces Moved 1449 | 37 76 21 688 378 249 Core 10 | 10 . . . . . Treads . | . . . . . . Legs 1439 | 27 76 21 688 378 249 Wheels . | . . . . . . Hover . | . . . . . . Flight . | . . . . . . Fastest Speed 50 | 50 120 120 90 90 105 Average Speed 106 | 109 120 120 114 90 105 Slowest Speed 120 | 120 120 120 120 90 105 Overloaded Moves . | . . . . . . Propulsion Burnouts . | . . . . . . Robots Hopped . | . . . . . . Cave-ins Triggered . | . . . . . . Exploration Rate (%) 34 | 4 12 5 93 79 11 Regions Visited 5 Branch Regions 3 Pre-discovered Areas 2 | . . . 1 1 . Known Exits Taken . | . . . . . . Unknown Exits Taken 5 | 1 1 1 1 1 . Scrap Searched 2 | . . . . 2 . Spaces Dug . | . . . . . . Terrain Destroyed . | . . . . . . Melee . | . . . . . . Projectile . | . . . . . . AOE . | . . . . . . Terrain Rammed . | . . . . . . Walls Destroyed . | . . . . . . Machines Disabled . | . . . . . . Actions | -11 -10 -10 -10 -9 -8 --------- Run | Yrd Mat Min Exi Min Mat Total 1647 | 48 80 20 701 395 403 Wait 141 | . . . . . 141 Move 1444 | 36 75 20 687 377 249 Hop . | . . . . . . Pick Up 18 | 6 1 . 6 3 2 Fast Attach . | . . . . . . Attach 10 | 6 . . 1 1 2 Detach . | . . . . . . Swap 12 | . 1 . 7 2 2 Drop 1 | . 1 . . . . Fire 20 | . 2 . . 11 7 Melee . | . . . . . . Ram . | . . . . . . Kick 1 | . . . . 1 . Crush . | . . . . . . Escape Stasis . | . . . . . . Rewire . | . . . . . . Trap . | . . . . . . Miscellaneous . | . . . . . . Route ------- -11/Scrapyard -10/Materials -10/Mines -10/Exiles (discovered 2 exits: [*Min x2]) -9/Mines -8/Materials History --------- Turn | Location | Event 6 | -11/Scrapyard | Discovered new exit (range 15) 53 | -11/Scrapyard | Entered Materials 70 | -10/Materials | Discovered new exit (range 16) 130 | -10/Materials | Met 8R-AWN 152 | -10/Materials | Entered Mines 154 | -10/Mines | Followed 8R-AWN into the Mines 172 | -10/Mines | Discovered new exit (range 5) 176 | -10/Mines | Entered Exiles 198 | -10/Exiles | Discovered new exit (range 15) 215 | -10/Exiles | Welcomed by 8R-AWN 245 | -10/Exiles | Met EX-HEX 314 | -10/Exiles | Build established: Mutant 315 | -10/Exiles | Met EX-DEC 342 | -10/Exiles | Learned location of Zion (-7) 418 | -10/Exiles | Visited The Gauntlet 627 | -10/Exiles | Discovered new exit (range 12) 716 | -10/Exiles | Met EX-BIN 742 | -10/Exiles | Aligned with FarCom system 744 | -10/Exiles | Given EX-Vault access code 835 | -10/Exiles | Opened EX-Vault 841 | -10/Exiles | Found Prototype Leg 843 | -10/Exiles | Found Prototype Leg 850 | -10/Exiles | Identified Potential Leg (x2) 852 | -10/Exiles | Found Cloak of Protection 867 | -10/Exiles | Found Skeleton Box 887 | -10/Exiles | Warned to stay clear of 0b10 Research branches 979 | -10/Exiles | Stole three prototypes: Potential Leg, Cloak of Protection, Skeleton Box 979 | -10/Exiles | Entered Mines 1000 | -9/Mines | Received a Rocket Launcher from a helpful Derelict 1225 | -9/Mines | Found a damaged Exp. Sensor Array with a note attached 1227 | -9/Mines | Found Prototype Device 1332 | -9/Mines | Discovered new exit (range 15) 1356 | -9/Mines | Entered Materials 1356 | -8/Materials | Evolved 4 slots: Power x1, Propulsion x2, Utility x1 1787 | -8/Materials | Self-destructed Last Messages --------------- W-25 Informer sends out distress signal. S-10 Pest destroyed. K-01 Serf collects debris. O-16 Technician: "IFF HANDSHAKE FAILED. SECURING TERMINAL." Destroyed Datajack. Destroyed Hover Unit. K-01 Serf collects debris. O-16 Technician uses terminal to summon reinforcements. ALERT: Hostiles spotted, dispatching reinforcements to Terminal M001. O-16 Technician locks terminal. S-10 Pest destroyed. Atomic Centrifuge disabled. R-06 Scavenger collects Lgt. Assault Rifle. R-06 Scavenger collects Flight Unit. Atomic Centrifuge disabled. R-06 Scavenger sends out distress signal. G-47 Trooper destroyed. Map ----- +----------------------------------------------------+ | | | | | | | | | | | | | | | | | | | | | ???????????????????????????????????????????????? | | ?????????????"?"???????????????????????????????? | | ??????????###"?"##########?????????????????????? | | ?????????? ? #? ???????????????????? | | ?????????? ? #!????????????????????? | | ????"" ?""" """ " # ????????????????????? | | ? """ """ """ T +?????????????????????? | | ? """ """ """ " #?????????????????????? | | ?? #?????????????????????? | | ?? #?????????????????????? | | """ """ """ """ #?????????????????????? | | """ """ ^""" """ ####??????????????????? | | """ " " " """ #?????????#####????? | | % s % ########### #????? | | ! =s #????? | | =gg @ #????? | | ?##########+########################### #????? | | ?????# ] =#???????????????????# #????? | | ?????# """ """ #???????????????????# #????? | | ?????# """"""""" #???????????????????# #????? | | ???? + """"" " #???????????????????# #????? | | ???### ]#???????????????????# #????? | | ?????#############????????????????????# #????? | | ??????????????????????????????????????# #????? | | ??????????????????????????????????????# #????? | | ??????????????????????????????????????# #????? | | ?????????????????????????????????????## ##???? | | ?????????????????????????????????????# #???? | | ?????????????????????????????????????# #???? | | ?????????????????????????????????????# #???? | | ?????????????????????????????????????# #???? | | ?????????????????????????????????????# #???? | | ???????????????????????????????????#####+#####?? | | ???????????????????????????????????# #?? | | ???????????????????????????????????# #?? | | ???????????????????????????????????# """ #?? | | ???????????????????????????????????# """""#?? | | ???????????????????????????????????# """""#?? | | ???????????????????????????????????# """""#?? | | ???????????????????????????????????# """ #?? | +----------------------------------------------------+ Best States ------------- Heat Dissipation 53 Energy Generation 10 Energy Capacity 250 Matter Stores 229 Matter Capacity 400 Sight Range 16 Terrain Scan Density 10 Cloak Strength 5 Armor Coverage 225 Evasion (%) 57 Item Schematics ----------------- None Robot Schematics ------------------ None Fabricated ------------ Nothing Alien Tech Used ----------------- None Achievements -------------- Dynamic Key Librarian Tourist Challenges ------------ None Game ------ Seed BottomlessIonicBoregun Manual? 0 Play Time 00:23:08 Cumulative 1.8 hours Start 2024.04.03 @ 22:13:02 End 2024.04.03 @ 22:34:35 Sessions 1 Manual Loads 0 Difficulty Rogue Special Mode None Game No. 9 Rogue 9 Adventurer 0 Explorer 0 Win Type - Total 0 Types 0/0/0/0/0/0/0/0/0 Lore% 10 Gallery% 6 Achievement% 5 Wizard Run 0 Options --------- Layout 1 ASCII 0 Keyboard 0 Movement Mouse Keybinds 0 Fullscreen 1 Font 32/SmallcapsGlow Map View 50x35 Zoom Use 0% Tactical HUD 0 Map Filters NONE Filters NONE Steam 1 RUN: 65156515-a265-41a0-9531-c16d80968bee